fUSD/lending_fUSD_20260506
["ID","MTS","AMOUNT","RATE_DAILY","PERIOD"]
[421674467,1778038246000,-500.0,0.00035616,7]
[421674473,1778038246000,-500.0,0.00035616,7]
[421674472,1778038246000,-500.0,0.00035616,7]
[421674471,1778038246000,-500.0,0.00035616,7]
[421674470,1778038246000,-500.0,0.00035616,7]
[421674469,1778038246000,-500.0,0.00035616,7]
[421674474,1778038246000,-500.0,0.00035616,7]
[421674475,1778038246000,-500.0,0.00035616,7]
[421674477,1778038246000,-500.0,0.00035616,7]
[421674476,1778038246000,-500.0,0.00035616,7]
[421674482,1778038246000,-150.0,0.00035753,30]
[421674480,1778038246000,-500.0,0.00035616,7]
[421674481,1778038246000,-178.48,0.00035616,2]
[421674491,1778038246000,-516.77388338,0.00036,120]
[421674485,1778038246000,-484.23038226,0.000359,30]
[421674483,1778038246000,-4000.0,0.0003589,60]
[421674492,1778038246000,-249.60617625,0.00036,120]
[421674493,1778038246000,-5703.9213273,0.00036,120]
[421674490,1778038246000,-4027.6103886,0.00036,120]
[421674487,1778038246000,-1352.0,0.0003594,2]
[421674488,1778038246000,-925.0,0.0003594,2]
[421674484,1778038246000,-150.0,0.00035899,2]
[421674489,1778038246000,-372.3605897,0.00036,120]
[421674495,1778038246000,-844.7,0.00036153,30]
[421674521,1778038246000,-158.0,0.00036652,3]
[421674534,1778038246000,-154.0,0.00037263,30]
[421674527,1778038246000,-365.0,0.00037,2]
[421674558,1778038246000,-1000.0,0.000378,7]
[421674561,1778038246000,-1000.0,0.000378,7]
[421674560,1778038246000,-1000.0,0.000378,7]
[421674562,1778038246000,-1000.0,0.000378,7]
[421674566,1778038246000,-1000.0,0.000378,7]
[421674565,1778038246000,-1000.0,0.000378,7]
[421674567,1778038246000,-1000.0,0.000378,7]
[421674564,1778038246000,-1000.0,0.000378,7]
[421674563,1778038246000,-1000.0,0.000378,7]
[421674570,1778038246000,-1000.0,0.000378,7]
[421674572,1778038246000,-1000.0,0.000378,7]
[421674574,1778038246000,-1000.0,0.000378,7]
[421674575,1778038246000,-1000.0,0.000378,7]
[421674559,1778038246000,-1000.0,0.000378,7]
[421674576,1778038246000,-1000.0,0.000378,7]
[421674577,1778038246000,-1000.0,0.000378,7]
[421674580,1778038246000,-1000.0,0.000378,7]
[421674581,1778038246000,-1000.0,0.000378,7]
[421674579,1778038246000,-1000.0,0.000378,7]
[421674526,1778038246000,-461.9,0.0003694,2]
[421674578,1778038246000,-1000.0,0.000378,7]
[421674582,1778038246000,-1000.0,0.000378,7]
[421674584,1778038246000,-1000.0,0.000378,7]
[421674586,1778038246000,-1000.0,0.000378,7]
[421674587,1778038246000,-1000.0,0.000378,7]
[421674583,1778038246000,-1000.0,0.000378,7]
[421674588,1778038246000,-1000.0,0.000378,7]
[421674585,1778038246000,-1000.0,0.000378,7]
[421674573,1778038246000,-1000.0,0.000378,7]
[421674569,1778038246000,-1000.0,0.000378,7]
[421674571,1778038246000,-1000.0,0.000378,7]
[421674557,1778038246000,-1000.0,0.000378,7]
[421674568,1778038246000,-1000.0,0.000378,7]
[421674525,1778038246000,-156.0,0.00036936,2]
[421674530,1778038246000,-5703.9213273,0.000371,120]
[421674528,1778038246000,-4685.30481988,0.00037,3]
[421674532,1778038246000,-305.09424946,0.0003726,5]
[421674535,1778038246000,-158.0,0.00037263,30]
[421674537,1778038246000,-612.0,0.00037263,30]
[421674536,1778038246000,-204.0,0.00037263,30]
[421674533,1778038246000,-211.0,0.00037263,30]
[421674543,1778038246000,-429.54,0.000373,30]
[421674544,1778038246000,-461.9,0.0003731,2]
[421674538,1778038246000,-194.0,0.00037263,30]
[421674541,1778038246000,-483.0,0.00037265,30]
[421674539,1778038246000,-366.0,0.00037264,30]
[421674529,1778038246000,-4027.6103886,0.000371,120]
[421674540,1778038246000,-153.0,0.00037265,30]
[421674551,1778038246000,-336.70213556,0.00037733,2]
[421674542,1778038246000,-175.0,0.00037265,30]
[421674552,1778038246000,-177.07633861,0.0003779,2]
[421674554,1778038246000,-1000.0,0.000378,7]
[421674547,1778038246000,-326.0,0.00037604,10]
[421674550,1778038246000,-150.0,0.00037694,2]
[421674553,1778038246000,-1000.0,0.000378,7]
[421674548,1778038246000,-4000.0,0.00037616,60]
[421674545,1778038246000,-7000.0,0.00037463,7]
[421674549,1778038246000,-461.9,0.00037679,2]
[421674556,1778038246000,-1000.0,0.000378,7]
[421674546,1778038246000,-4400.98482659,0.0003759,2]
[421674555,1778038246000,-1000.0,0.000378,7]
[421674612,1778038247000,-1000.0,0.000378,7]
[421674618,1778038247000,-1000.0,0.000378,7]
[421674614,1778038247000,-1000.0,0.000378,7]
[421674616,1778038247000,-1000.0,0.000378,7]
[421674624,1778038247000,-1000.0,0.000378,7]
[421674619,1778038247000,-1000.0,0.000378,7]
[421674615,1778038247000,-1000.0,0.000378,7]
[421674617,1778038247000,-1000.0,0.000378,7]
[421674613,1778038247000,-1000.0,0.000378,7]
[421674636,1778038247000,-1000.0,0.000378,7]
[421674620,1778038247000,-1000.0,0.000378,7]
[421674622,1778038247000,-1000.0,0.000378,7]
[421674623,1778038247000,-1000.0,0.000378,7]
[421674637,1778038247000,-1000.0,0.000378,7]
[421674626,1778038247000,-1000.0,0.000378,7]
[421674630,1778038247000,-1000.0,0.000378,7]
[421674628,1778038247000,-1000.0,0.000378,7]
[421674627,1778038247000,-1000.0,0.000378,7]
[421674609,1778038247000,-1000.0,0.000378,7]
[421674621,1778038247000,-1000.0,0.000378,7]
[421674608,1778038247000,-1000.0,0.000378,7]
[421674601,1778038247000,-1000.0,0.000378,7]
[421674611,1778038247000,-1000.0,0.000378,7]
[421674589,1778038247000,-1000.0,0.000378,7]
[421674592,1778038247000,-1000.0,0.000378,7]
[421674590,1778038247000,-1000.0,0.000378,7]
[421674591,1778038247000,-1000.0,0.000378,7]
[421674604,1778038247000,-1000.0,0.000378,7]
[421674594,1778038247000,-1000.0,0.000378,7]
[421674593,1778038247000,-1000.0,0.000378,7]
[421674595,1778038247000,-1000.0,0.000378,7]
[421674600,1778038247000,-1000.0,0.000378,7]
[421674598,1778038247000,-1000.0,0.000378,7]
[421674603,1778038247000,-1000.0,0.000378,7]
[421674596,1778038247000,-1000.0,0.000378,7]
[421674597,1778038247000,-1000.0,0.000378,7]
[421674602,1778038247000,-1000.0,0.000378,7]
[421674599,1778038247000,-1000.0,0.000378,7]
[421674606,1778038247000,-1000.0,0.000378,7]
[421674605,1778038247000,-1000.0,0.000378,7]
[421674625,1778038247000,-1000.0,0.000378,7]
[421674610,1778038247000,-1000.0,0.000378,7]
[421674607,1778038247000,-763.0,0.000378,7]
[421674631,1778038247000,-1000.0,0.000378,7]
[421674655,1778038247000,-318.019443,0.00038052,7]
[421674632,1778038247000,-1000.0,0.000378,7]
[421674653,1778038247000,-318.019443,0.00038052,7]
[421674657,1778038247000,-318.019443,0.00038052,7]
[421674658,1778038247000,-904.544289,0.00038052,7]
[421674663,1778038247000,-250.0,0.00038052,2]
[421674665,1778038247000,-250.0,0.00038052,2]
[421674667,1778038247000,-250.0,0.00038052,2]
[421674666,1778038247000,-250.0,0.00038052,2]
[421674664,1778038247000,-250.0,0.00038052,2]
[421674675,1778038247000,-38156.91418303,0.00038177,49]
[421674674,1778038247000,-564.96720411,0.00038159,2]
[421674673,1778038247000,-844.7,0.00038125,30]
[421674670,1778038247000,-250.0,0.00038052,2]
[421674671,1778038247000,-361.0,0.00038052,2]
[421674668,1778038247000,-250.0,0.00038052,2]
[421674669,1778038247000,-250.0,0.00038052,2]
[421674677,1778038247000,-450.0,0.00036567,7]
[421674676,1778038247000,-150.0,0.00035216,2]
[421674678,1778038247000,-251.35748428,0.00029437,7]
[421674629,1778038247000,-1000.0,0.000378,7]
[421674659,1778038247000,-599.837577,0.00038052,7]
[421674656,1778038247000,-904.544289,0.00038052,7]
[421674672,1778038247000,-538.9366409,0.000381,33]
[421674652,1778038247000,-904.544289,0.00038052,7]
[421674660,1778038247000,-599.837577,0.00038052,7]
[421674635,1778038247000,-1000.0,0.000378,7]
[421674638,1778038247000,-1000.0,0.000378,7]
[421674649,1778038247000,-328.357965,0.00038052,7]
[421674640,1778038247000,-1000.0,0.000378,7]
[421674647,1778038247000,-328.357965,0.00038052,7]
[421674648,1778038247000,-328.357965,0.00038052,7]
[421674641,1778038247000,-1000.0,0.000378,7]
[421674639,1778038247000,-1000.0,0.000378,7]
[421674634,1778038247000,-1000.0,0.000378,7]
[421674645,1778038247000,-1004.08156236,0.00038,2]
[421674642,1778038247000,-1000.0,0.000378,7]
[421674646,1778038247000,-461.9,0.00038048,2]
[421674644,1778038247000,-4000.0,0.00037973,60]
[421674650,1778038247000,-328.357965,0.00038052,7]
[421674661,1778038247000,-599.837577,0.00038052,7]
[421674651,1778038247000,-318.019443,0.00038052,7]
[421674662,1778038247000,-599.837577,0.00038052,7]
[421674643,1778038247000,-1500.0,0.00037808,5]
[421674654,1778038247000,-904.544289,0.00038052,7]
[421674703,1778038248000,-304.657235,0.000382,7]
[421674715,1778038248000,-300.0,0.00038259,2]
[421674713,1778038248000,-218.25416442,0.00038256,2]
[421674714,1778038248000,-211.01027924,0.00038256,2]
[421674711,1778038248000,-451.875081,0.00038255,7]
[421674719,1778038248000,-300.0,0.00038259,2]
[421674708,1778038248000,-320.505023,0.000382,7]
[421674710,1778038248000,-451.875081,0.00038255,7]
[421674718,1778038248000,-300.0,0.00038259,2]
[421674709,1778038248000,-451.875081,0.00038255,7]
[421674712,1778038248000,-451.875081,0.00038255,7]
[421674716,1778038248000,-1092.83356842,0.00038259,2]
[421674725,1778038248000,-300.0,0.00038259,2]
[421674720,1778038248000,-300.0,0.00038259,2]
[421674723,1778038248000,-300.0,0.00038259,2]
[421674724,1778038248000,-300.0,0.00038259,2]
[421674722,1778038248000,-300.0,0.00038259,2]
[421674727,1778038248000,-300.0,0.00038259,2]
[421674726,1778038248000,-300.0,0.00038259,2]
[421674729,1778038248000,-300.0,0.00038259,2]
[421674721,1778038248000,-300.0,0.00038259,2]
[421674728,1778038248000,-300.0,0.00038259,2]
[421674730,1778038248000,-300.0,0.00038259,2]
[421674731,1778038248000,-491.85958444,0.00038259,2]
[421674717,1778038248000,-300.0,0.00038259,2]
[421674701,1778038248000,-295.185004,0.000382,7]
[421674682,1778038248000,-2000.0,0.00029137,7]
[421674707,1778038248000,-320.505023,0.000382,7]
[421674680,1778038248000,-3215.26496774,0.0001927,2]
[421674679,1778038248000,-31648.11560146,0.00012987,2]
[421674681,1778038248000,-192.0,0.00026466,2]
[421674683,1778038248000,-2000.0,0.00029237,7]
[421674732,1778038248000,-490.07031658,0.00038259,2]
[421674694,1778038248000,-236.474466,0.000382,7]
[421674693,1778038248000,-295.185004,0.000382,7]
[421674690,1778038248000,-5703.9213273,0.000382,120]
[421674686,1778038248000,-33.227327,0.00036567,7]
[421674684,1778038248000,-2000.0,0.00029337,7]
[421674687,1778038248000,-483.227327,0.00036567,7]
[421674702,1778038248000,-304.657235,0.000382,7]
[421674689,1778038248000,-4027.6103886,0.000382,120]
[421674685,1778038248000,-1748.64251572,0.00029437,7]
[421674691,1778038248000,-151.0,0.000382,7]
[421674699,1778038248000,-304.657235,0.000382,7]
[421674697,1778038248000,-236.474466,0.000382,7]
[421674698,1778038248000,-295.185004,0.000382,7]
[421674695,1778038248000,-295.185004,0.000382,7]
[421674704,1778038248000,-151.0,0.000382,7]
[421674700,1778038248000,-236.474466,0.000382,7]
[421674706,1778038248000,-320.505023,0.000382,7]
[421674696,1778038248000,-304.657235,0.000382,7]
[421674705,1778038248000,-320.505023,0.000382,7]
[421674688,1778038248000,-20747.28441706,0.00038185,2]
[421674733,1778038248000,-300.0,0.00038259,2]
[421674692,1778038248000,-236.474466,0.000382,7]
[421674737,1778038248000,-603.45144378,0.00038259,2]
[421674762,1778038248000,-300.0,0.00038259,2]
[421674771,1778038248000,-300.0,0.00038259,2]
[421674764,1778038248000,-300.0,0.00038259,2]
[421674765,1778038248000,-300.0,0.00038259,2]
[421674767,1778038248000,-1145.24599896,0.00038259,2]
[421674768,1778038248000,-309.07064608,0.00038259,2]
[421674769,1778038248000,-300.0,0.00038259,2]
[421674772,1778038248000,-1805.51200897,0.00038259,2]
[421674773,1778038248000,-300.0,0.00038259,2]
[421674775,1778038248000,-300.0,0.00038259,2]
[421674783,1778038248000,-451.13853711,0.00038259,2]
[421674770,1778038248000,-862.96230178,0.00038259,2]
[421674776,1778038248000,-310.3725982,0.00038259,2]
[421674777,1778038248000,-300.0,0.00038259,2]
[421674778,1778038248000,-300.0,0.00038259,2]
[421674780,1778038248000,-300.0,0.00038259,2]
[421674781,1778038248000,-481.18706949,0.00038259,2]
[421674779,1778038248000,-463.08064867,0.00038259,2]
[421674785,1778038248000,-300.0,0.00038259,2]
[421674784,1778038248000,-300.0,0.00038259,2]
[421674787,1778038248000,-300.0,0.00038259,2]
[421674786,1778038248000,-300.0,0.00038259,2]
[421674788,1778038248000,-300.0,0.00038259,2]
[421674734,1778038248000,-300.0,0.00038259,2]
[421674774,1778038248000,-300.0,0.00038259,2]
[421674766,1778038248000,-300.0,0.00038259,2]
[421674782,1778038248000,-300.0,0.00038259,2]
[421674761,1778038248000,-1793.38851355,0.00038259,2]
[421674763,1778038248000,-343.40295571,0.00038259,2]
[421674735,1778038248000,-300.0,0.00038259,2]
[421674738,1778038248000,-300.0,0.00038259,2]
[421674736,1778038248000,-300.0,0.00038259,2]
[421674740,1778038248000,-300.0,0.00038259,2]
[421674747,1778038248000,-724.83131769,0.00038259,2]
[421674748,1778038248000,-300.0,0.00038259,2]
[421674741,1778038248000,-526.86051061,0.00038259,2]
[421674739,1778038248000,-300.0,0.00038259,2]
[421674744,1778038248000,-891.9241332,0.00038259,2]
[421674743,1778038248000,-1065.13491717,0.00038259,2]
[421674742,1778038248000,-300.0,0.00038259,2]
[421674746,1778038248000,-309.13065885,0.00038259,2]
[421674755,1778038248000,-300.0,0.00038259,2]
[421674745,1778038248000,-300.0,0.00038259,2]
[421674758,1778038248000,-300.0,0.00038259,2]
[421674751,1778038248000,-300.0,0.00038259,2]
[421674759,1778038248000,-852.7601399,0.00038259,2]
[421674752,1778038248000,-300.06118393,0.00038259,2]
[421674756,1778038248000,-474.98520692,0.00038259,2]
[421674754,1778038248000,-300.0,0.00038259,2]
[421674760,1778038248000,-300.0,0.00038259,2]
[421674757,1778038248000,-300.0,0.00038259,2]
[421674753,1778038248000,-300.0,0.00038259,2]
[421674749,1778038248000,-301.2859328,0.00038259,2]
[421674750,1778038248000,-300.0,0.00038259,2]
[421674813,1778038249000,-491.85958444,0.00038259,2]
[421674811,1778038249000,-300.0,0.00038259,2]
[421674817,1778038249000,-300.0,0.00038259,2]
[421674815,1778038249000,-300.0,0.00038259,2]
[421674814,1778038249000,-300.0,0.00038259,2]
[421674812,1778038249000,-300.0,0.00038259,2]
[421674816,1778038249000,-300.0,0.00038259,2]
[421674818,1778038249000,-603.45144378,0.00038259,2]
[421674823,1778038249000,-526.86051061,0.00038259,2]
[421674819,1778038249000,-300.0,0.00038259,2]
[421674821,1778038249000,-300.0,0.00038259,2]
[421674824,1778038249000,-1065.13491717,0.00038259,2]
[421674822,1778038249000,-300.0,0.00038259,2]
[421674825,1778038249000,-300.0,0.00038259,2]
[421674826,1778038249000,-588.33162375,0.00038259,2]
[421674809,1778038249000,-300.0,0.00038259,2]
[421674828,1778038249000,-309.13065885,0.00038259,2]
[421674820,1778038249000,-300.0,0.00038259,2]
[421674808,1778038249000,-300.0,0.00038259,2]
[421674803,1778038249000,-300.0,0.00038259,2]
[421674804,1778038249000,-300.0,0.00038259,2]
[421674829,1778038249000,-724.83131769,0.00038259,2]
[421674795,1778038249000,-300.0,0.00038259,2]
[421674789,1778038249000,-300.0,0.00038259,2]
[421674790,1778038249000,-483.27319916,0.00038259,2]
[421674791,1778038249000,-309.32134718,0.00038259,2]
[421674792,1778038249000,-300.0,0.00038259,2]
[421674794,1778038249000,-300.0,0.00038259,2]
[421674793,1778038249000,-300.0,0.00038259,2]
[421674810,1778038249000,-300.0,0.00038259,2]
[421674797,1778038249000,-342.10270837,0.00038259,2]
[421674798,1778038249000,-1092.83356842,0.00038259,2]
[421674801,1778038249000,-300.0,0.00038259,2]
[421674796,1778038249000,-300.0,0.00038259,2]
[421674799,1778038249000,-300.0,0.00038259,2]
[421674805,1778038249000,-300.0,0.00038259,2]
[421674806,1778038249000,-300.0,0.00038259,2]
[421674802,1778038249000,-300.0,0.00038259,2]
[421674807,1778038249000,-300.0,0.00038259,2]
[421674800,1778038249000,-300.0,0.00038259,2]
[421674830,1778038249000,-300.0,0.00038259,2]
[421674827,1778038249000,-891.9241332,0.00038259,2]
[421674834,1778038249000,-300.0,0.00038259,2]
[421674851,1778038249000,-309.07064608,0.00038259,2]
[421674854,1778038249000,-1805.51200897,0.00038259,2]
[421674858,1778038249000,-300.0,0.00038259,2]
[421674862,1778038249000,-463.08064867,0.00038259,2]
[421674860,1778038249000,-300.0,0.00038259,2]
[421674859,1778038249000,-310.3725982,0.00038259,2]
[421674868,1778038249000,-300.0,0.00038259,2]
[421674861,1778038249000,-300.0,0.00038259,2]
[421674856,1778038249000,-300.0,0.00038259,2]
[421674869,1778038249000,-300.0,0.00038259,2]
[421674867,1778038249000,-300.0,0.00038259,2]
[421674864,1778038249000,-481.18706949,0.00038259,2]
[421674863,1778038249000,-300.0,0.00038259,2]
[421674871,1778038249000,-267.9471117,0.0003826,120]
[421674870,1778038249000,-161.0132506,0.0003826,120]
[421674873,1778038249000,-420.2733581,0.0003826,120]
[421674872,1778038249000,-373.491894,0.0003826,120]
[421674831,1778038249000,-301.2859328,0.00038259,2]
[421674865,1778038249000,-300.0,0.00038259,2]
[421674850,1778038249000,-1145.24599896,0.00038259,2]
[421674866,1778038249000,-451.13853711,0.00038259,2]
[421674849,1778038249000,-300.0,0.00038259,2]
[421674833,1778038249000,-301.29267061,0.00038259,2]
[421674855,1778038249000,-300.0,0.00038259,2]
[421674832,1778038249000,-300.0,0.00038259,2]
[421674835,1778038249000,-300.06118393,0.00038259,2]
[421674836,1778038249000,-300.0,0.00038259,2]
[421674841,1778038249000,-852.7601399,0.00038259,2]
[421674844,1778038249000,-1793.38851355,0.00038259,2]
[421674837,1778038249000,-300.0,0.00038259,2]
[421674839,1778038249000,-300.0,0.00038259,2]
[421674842,1778038249000,-300.0,0.00038259,2]
[421674838,1778038249000,-300.0,0.00038259,2]
[421674843,1778038249000,-300.0,0.00038259,2]
[421674845,1778038249000,-300.0,0.00038259,2]
[421674847,1778038249000,-300.0,0.00038259,2]
[421674857,1778038249000,-300.0,0.00038259,2]
[421674846,1778038249000,-343.40295571,0.00038259,2]
[421674848,1778038249000,-300.0,0.00038259,2]
[421674853,1778038249000,-862.96230178,0.00038259,2]
[421674840,1778038249000,-474.98520692,0.00038259,2]
[421674852,1778038249000,-300.0,0.00038259,2]
[421674917,1778038250000,-150.0,0.00038375,2]
[421674915,1778038250000,-150.0,0.00038375,2]
[421674914,1778038250000,-150.0,0.00038375,2]
[421674913,1778038250000,-150.0,0.00038375,2]
[421674911,1778038250000,-155.26585149,0.00038366,120]
[421674919,1778038250000,-150.0,0.00038375,2]
[421674910,1778038250000,-166.63138484,0.00038366,120]
[421674918,1778038250000,-150.0,0.00038375,2]
[421674909,1778038250000,-156.40820006,0.00038366,120]
[421674916,1778038250000,-150.0,0.00038375,2]
[421674907,1778038250000,-166.63138487,0.00038366,120]
[421674908,1778038250000,-155.2658515,0.00038366,120]
[421674912,1778038250000,-156.40820005,0.00038366,120]
[421674925,1778038250000,-150.0,0.000385,120]
[421674922,1778038250000,-326.0,0.00038426,10]
[421674921,1778038250000,-461.9,0.00038418,2]
[421674929,1778038250000,-156.40820006,0.0003864,120]
[421674932,1778038250000,-854.66775497,0.00038745,2]
[421674923,1778038250000,-4327.0738,0.00038488,2]
[421674930,1778038250000,-4000.0,0.00038658,60]
[421674931,1778038250000,-220.0,0.00038663,90]
[421674924,1778038250000,-181.0,0.000385,120]
[421674928,1778038250000,-166.63138487,0.0003864,120]
[421674933,1778038250000,-181.0,0.0003875,120]
[421674927,1778038250000,-4327.0738,0.00038625,2]
[421674934,1778038250000,-150.0,0.0003875,120]
[421674903,1778038250000,-152.14169922,0.00038366,120]
[421674920,1778038250000,-225.0,0.00038375,2]
[421674901,1778038250000,-152.14169922,0.00038366,120]
[421674884,1778038250000,-500.0,0.0003826,120]
[421674904,1778038250000,-156.40820005,0.00038366,120]
[421674881,1778038250000,-500.0,0.0003826,120]
[421674874,1778038250000,-159.2064288,0.0003826,120]
[421674878,1778038250000,-500.0,0.0003826,120]
[421674880,1778038250000,-500.0,0.0003826,120]
[421674876,1778038250000,-510.8519361,0.0003826,120]
[421674875,1778038250000,-756.5324272,0.0003826,120]
[421674879,1778038250000,-500.0,0.0003826,120]
[421674877,1778038250000,-158.4902185,0.0003826,120]
[421674882,1778038250000,-500.0,0.0003826,120]
[421674885,1778038250000,-586.0147076,0.0003826,120]
[421674887,1778038250000,-200.0,0.00038267,6]
[421674886,1778038250000,-212.3117556,0.0003826,120]
[421674883,1778038250000,-704.3748623,0.0003826,120]
[421674902,1778038250000,-155.2658515,0.00038366,120]
[421674893,1778038250000,-707.341,0.00038346,120]
[421674889,1778038250000,-4000.0,0.00038301,60]
[421674888,1778038250000,-200.0,0.00038267,6]
[421674891,1778038250000,-1681.7140229,0.00038329,120]
[421674892,1778038250000,-707.341,0.00038346,120]
[421674894,1778038250000,-707.341,0.00038346,120]
[421674897,1778038250000,-1942.3714,0.00038351,2]
[421674899,1778038250000,-271.0,0.00038356,2]
[421674895,1778038250000,-707.341,0.00038346,120]
[421674906,1778038250000,-156.40820005,0.00038366,120]
[421674898,1778038250000,-4327.0738,0.00038351,2]
[421674905,1778038250000,-152.14169922,0.00038366,120]
[421674896,1778038250000,-196.1856,0.00038351,2]
[421674900,1778038250000,-156.40820008,0.00038366,120]
[421674890,1778038250000,-622.46173044,0.00038329,120]
[421674935,1778038250000,-4327.0738,0.00038762,2]
[421674926,1778038250000,-51180.03616578,0.000385,2]
[421674937,1778038250000,-5371.43028997,0.00038834,2]
[421674980,1778038250000,-4327.0738,0.00039584,2]
[421674972,1778038250000,-4327.0738,0.00039447,2]
[421674969,1778038250000,-1217.46556547,0.000394,120]
[421674976,1778038250000,-181.0,0.000395,120]
[421674979,1778038250000,-150.0,0.00039579,2]
[421674977,1778038250000,-150.0,0.000395,120]
[421674974,1778038250000,-156.40820006,0.00039462,120]
[421674978,1778038250000,-3000.0,0.000395,100]
[421674975,1778038250000,-250.0,0.00039479,61]
[421674973,1778038250000,-166.63138487,0.00039462,120]
[421674981,1778038250000,-160.0,0.000396,72]
[421674982,1778038250000,-2080.17592889,0.00039626,5]
[421674985,1778038250000,-2319.72410669,0.00039626,5]
[421674971,1778038250000,-5703.9213273,0.000394,120]
[421674983,1778038250000,-2157.14243826,0.00039626,5]
[421674987,1778038250000,-2494.55939289,0.00039626,5]
[421674990,1778038250000,-2781.82699784,0.00039626,5]
[421674984,1778038250000,-2236.95670848,0.00039626,5]
[421674986,1778038250000,-2405.55389864,0.00039626,5]
[421674991,1778038250000,-2884.75459676,0.00039626,5]
[421674989,1778038250000,-2682.57183977,0.00039626,5]
[421674988,1778038250000,-2586.85809042,0.00039626,5]
[421674993,1778038250000,-151.0,0.00039683,14]
[421674995,1778038250000,-151.0,0.00039686,30]
[421674994,1778038250000,-151.0,0.00039686,30]
[421674996,1778038250000,-151.0,0.00039686,30]
[421674997,1778038250000,-217.369836,0.00039686,30]
[421674943,1778038250000,-1774.795959,0.0003894,30]
[421674992,1778038250000,-2991.49051684,0.00039626,5]
[421674970,1778038250000,-4027.6103886,0.000394,120]
[421674955,1778038250000,-150.0,0.00039041,120]
[421674968,1778038250000,-4000.0,0.00039342,60]
[421674964,1778038250000,-2000.0,0.000393,7]
[421674942,1778038250000,-156.40820006,0.00038914,120]
[421674938,1778038250000,-4327.0738,0.00038899,2]
[421674941,1778038250000,-166.63138487,0.00038914,120]
[421674936,1778038250000,-461.94485924,0.00038787,2]
[421674940,1778038250000,-1597.62615258,0.00038904,5]
[421674945,1778038250000,-1774.795959,0.0003894,30]
[421674944,1778038250000,-1774.795959,0.0003894,30]
[421674947,1778038250000,-858.096,0.0003894,2]
[421674946,1778038250000,-1774.795959,0.0003894,30]
[421674953,1778038250000,-4000.0,0.00039014,60]
[421674948,1778038250000,-1352.0,0.0003894,2]
[421674954,1778038250000,-4327.0738,0.00039036,2]
[421674949,1778038250000,-925.0,0.0003894,2]
[421674939,1778038250000,-500.0,0.00038904,5]
[421674950,1778038250000,-181.0,0.00039,120]
[421674962,1778038250000,-181.0,0.0003925,120]
[421674961,1778038250000,-326.0,0.00039247,10]
[421674963,1778038250000,-150.0,0.0003925,120]
[421674967,1778038250000,-4327.0738,0.0003931,2]
[421674951,1778038250000,-150.0,0.00039,120]
[421674966,1778038250000,-1942.3714,0.0003931,2]
[421674965,1778038250000,-65559.68163181,0.000393,7]
[421674960,1778038250000,-156.40820006,0.00039188,120]
[421674958,1778038250000,-4327.0738,0.00039173,2]
[421674957,1778038250000,-388.79,0.000391,120]
[421674956,1778038250000,-160.21,0.00039041,30]
[421674952,1778038250000,-31245.29568317,0.00039,2]
[421674959,1778038250000,-166.63138487,0.00039188,120]
[421675040,1778038251000,-151.0,0.00039686,30]
[421675029,1778038251000,-151.0,0.00039686,30]
[421675037,1778038251000,-200.0,0.00039686,30]
[421675039,1778038251000,-578.20924308,0.00039686,30]